Cogmind - Beta 16 @@@ ROGUE MODE // 2025.10.29 @ 00:23:56 Player: time Result: Destroyed by G-50 Soldier with Heavy Laser Performance ------------- Evolutions (2) 1000 Regions Visited (8) 1600 Robots Destroyed (37) 185 Value Destroyed (698) 698 Prototype IDs (29) 580 Alien Tech Used (0) 0 Bonus (465) 465 TOTAL SCORE: 4528 Bonus ------- Follower Combat Kills 165 Aligned with FarCom 300 Cogmind --------- Core Integrity 0/550 Matter 33/300 Energy 99/100 System Corruption 6% Temperature Cool (9) Movement Core (50) Location -8/Storage Parts ------- > --- POWER (1) -------- (None) > --- PROPULSION (4) --- (None) > --- UTILITY (4) ------ (None) > --- WEAPON (2) ------- (None) > --- INVENTORY (5) ---- Improved Aluminum Leg Improved Sensor Array Improved Assault Rifle Advanced EMP Blaster Mace Peak State ------------ > --- POWER ------------ Light Ion Engine > --- PROPULSION ------- Cesium-ion Thruster Cesium-ion Thruster Cesium-ion Thruster Improved VTOL Module > --- UTILITY ---------- Small Storage Unit Structural Scanner Hacking Suite Hacking Suite > --- WEAPON ----------- Precision Beam Rifle Advanced Beam Cannon > --- INVENTORY -------- Light Ion Engine Improved Sensor Array Chronowheel Improved Assault Rifle Assault Cannon Advanced EMP Blaster Missile Launcher [Rating: 32] Favorites ----------- Power Light Ion Engine Engine Light Ion Engine Propulsion Cesium-ion Thruster Leg Aluminum Leg Wheel Compact Wheel Flight Unit Cesium-ion Thruster Utility Small Storage Unit Device Structural Scanner Storage Small Storage Unit Processor Targeting Computer Hackware Hacking Suite Protection Propulsion Shielding Weapon Improved Assault Rifle Energy Gun Particle Gun Energy Cannon Advanced Beam Cannon Ballistic Gun Improved Assault Rifle Ballistic Cannon Assault Cannon Launcher Grenade Launcher Special Weapon Mining Laser Impact Weapon Mace Build | -11 -10 -10 -9 -9 -9 -8 -8 -8 ------- Run | Yrd Mat Min Mat Min Exi Min Mat Sto Slots Evolved 4 | . . . 2 . . . 2 . Power . | . . . . . . . . . Propulsion 2 | . . . 1 . . . 1 . Utility 2 | . . . 1 . . . 1 . Weapon . | . . . . . . . . . Parts Attached 56 | 7 4 . 21 4 1 . 1 18 Power 7 | 1 . . 3 1 . . . 2 Engine 7 | 1 . . 3 1 . . . 2 Core . | . . . . . . . . . Reactor . | . . . . . . . . . Propulsion 18 | 2 1 . 8 1 . . . 6 Treads . | . . . . . . . . . Leg 10 | 2 1 . 3 . . . . 4 Wheel 2 | . . . 2 . . . . . Hover . | . . . . . . . . . Flight 6 | . . . 3 1 . . . 2 Utility 13 | 2 1 . 5 . 1 . 1 3 Device 3 | 1 . . 1 . . . . 1 Storage 2 | 1 . . . . 1 . . . Processor 2 | . 1 . . . . . . 1 Hackware 4 | . . . 2 . . . 1 1 Protection 2 | . . . 2 . . . . . Artifact . | . . . . . . . . . Weapon 18 | 2 2 . 5 2 . . . 7 Energy Gun 5 | 1 1 . 1 . . . . 2 Energy Cannon 3 | . . . 2 . . . . 1 Ballistic Gun 4 | 1 . . 2 1 . . . . Ballistic Cannon 1 | . . . . . . . . 1 Launcher 3 | . 1 . . . . . . 2 Special Weapon 1 | . . . . 1 . . . . Impact Weapon 1 | . . . . . . . . 1 Slashing Weapon . | . . . . . . . . . Piercing Weapon . | . . . . . . . . . Special Melee Weapon . | . . . . . . . . . Unidentified Prototypes 6 | . . . 2 . . . . 4 Parts Lost 19 | . . . 4 1 . . 1 13 Power 2 | . . . 1 . . . . 1 Propulsion 9 | . . . 2 1 . . . 6 Utility 6 | . . . 1 . . . . 5 Weapon 2 | . . . . . . . 1 1 Highest Loss Streak 3 | . . . 3 1 . . 1 3 To Critical Strikes . | . . . . . . . . . Average Backups 7 | 3 7 8 7 8 7 8 7 7 Power . | . 1 1 . 1 1 1 1 . Propulsion . | 1 2 3 1 1 . 1 . . Utility 1 | . . . . 2 2 2 1 2 Weapon 3 | . 3 4 5 3 3 3 3 3 Tool/Special . | . . . . . . . . . Unused Backups 14 | 1 1 . 5 1 . 1 1 4 Power 1 | . . . . 1 . . . . Propulsion 1 | 1 . . . . . . . . Utility 3 | . . . . . . . 1 2 Weapon 7 | . 1 . 4 . . 1 . 1 Tool/Special 2 | . . . 1 . . . . 1 Average Slot Usage (%) 89 | . 100 100 90 95 93 100 89 81 Engine 10 | . 14 14 11 11 11 11 9 7 Leg 10 | . 28 28 20 . . . . 1 Wheel 1 | . . . 8 . . . . . Flight 18 | . . . 2 33 33 33 27 28 Device 10 | . 14 14 8 11 11 11 9 9 Storage 10 | . 14 14 11 11 11 11 9 8 Hackware 8 | . . . . 11 11 11 18 14 Energy Gun 3 | . 14 14 3 . . . . . Energy Cannon 2 | . . . 1 . . . . 5 Ballistic Gun 7 | . 13 11 15 11 11 11 9 . Special Weapon 1 | . . . . 6 4 11 8 . Peak Build Rating 32 | 7 9 9 21 22 21 22 25 32 Average Rating 17 | 5 8 9 12 19 19 21 24 23 On Entrance 14 | . 7 9 9 19 19 21 21 24 Avg Prop Armor Cover (%) 3 | . . . 4 . . . . 3 Naked Turns 4 | . . . . . . . . 4 Heaviest Build 23 | 14 15 17 23 15 13 13 13 18 Greatest Support 43 | 20 20 20 32 15 15 15 15 43 Greatest Overweight (x) 5 | 4 . . 5 . . . . 2 Average Overweight (x) . | . . . . . . . . . Largest Inventory Capacity 15 | 8 8 8 8 8 15 8 8 8 Average Capacity 7 | 7 8 8 8 8 8 8 8 7 Most Carried 8 | 4 8 8 8 8 8 8 8 8 Average Carried 7 | 3 7 8 7 7 7 7 7 7 Final Capacity 8 | 8 8 8 8 8 8 8 8 5 Final Carried 8 | 4 8 8 8 8 8 8 8 5 Class Distribution -------------------- 40% | Mutant 27% | Hacker-Sprinter 24% | Sprinter 4% | Scavenger-Mutant Dominant Class ---------------- Mutant | -10/Materials Mutant | -10/Mines Mutant | -9/Materials Sprinter | -9/Mines Sprinter | -9/Exiles Sprinter | -8/Mines Hacker-Sprinter | -8/Materials Hacker-Sprinter | -8/Storage Resources | -11 -10 -10 -9 -9 -9 -8 -8 -8 ----------- Run | Yrd Mat Min Mat Min Exi Min Mat Sto Matter Collected 967 | 271 127 12 410 87 . . . 60 Remotely . | . . . . . . . . . Salvage Created 862 | 85 289 14 355 64 . . . 55 Parts 68 | 6 24 5 24 7 . . . 2 Haulers Intercepted 3 | . 1 . 2 . . . . . Recyclers Shooed . | . . . . . . . . . Parts Field Recycled . | . . . . . . . . . Retrieved Matter . | . . . . . . . . . Parts Self-Destructed . | . . . . . . . . . Prevented . | . . . . . . . . . Parts Restored . | . . . . . . . . . Kills | -11 -10 -10 -9 -9 -9 -8 -8 -8 ------- Run | Yrd Mat Min Mat Min Exi Min Mat Sto Combat Hostiles Destroyed 28 | . 12 3 9 4 . . . . Guns 18 | . 9 . 5 4 . . . . Cannons 2 | . . . 2 . . . . . AOE 8 | . 3 3 2 . . . . . Classes Destroyed 9 | 2 4 . 2 . . . . 1 Worker 2 | . . . 1 . . . . 1 Builder 1 | . . . . . . . . 1 Tunneler 1 | 1 . . . . . . . . Hauler 3 | . 1 . 2 . . . . . Recycler 1 | 1 . . . . . . . . Watcher 1 | . 1 . . . . . . . Swarmer 16 | . 6 3 3 4 . . . . Grunt 11 | . 6 . 5 . . . . . Brawler 1 | . . . 1 . . . . . Best Kill Streak 4 | 2 4 3 4 4 . . . 2 Combat Bots Only 4 | . 4 3 3 4 . . . . Max Kills in Single Turn 3 | 1 2 3 2 2 . . . 1 Gunslinging 1 | . . . . 1 . . . . Exploded 3 | . 1 3 1 . . . . . Melee . | . . . . . . . . . Uniques/NPCs Destroyed . | . . . . . . . . . Combat | -11 -10 -10 -9 -9 -9 -8 -8 -8 -------- Run | Yrd Mat Min Mat Min Exi Min Mat Sto Hostile Shots Fired 241 | . 45 3 43 28 . . 3 119 Missed 91 | . 15 . 11 8 . . 2 55 Hits 150 | . 30 3 32 20 . . 1 64 Melee 8 | . . . . . . . . 8 Projectile 142 | . 30 3 32 20 . . 1 56 AOE 2 | . . 1 . . . . . 1 Critical Strikes 5 | . 1 . . . . . . 4 Damage Taken 2343 | . 295 32 367 172 . . 40 1437 Core 747 | . 101 3 36 44 . . . 563 Absorbed by Shields . | . . . . . . . . . Core Remaining (%) 79 | 100 . 58 . . . 80 . . Volleys Fired 88 | 5 27 6 28 5 . . 1 16 Largest 2 | 2 2 2 2 2 . . 2 2 Hottest 129 | 70 95 95 95 123 . . 123 129 Shots Fired 160 | 10 54 7 56 10 . . 2 21 Gun 120 | 10 50 1 45 8 . . 1 5 Cannon 17 | . . . 7 . . . . 10 Launcher 20 | . 4 6 4 . . . . 6 Special 3 | . . . . 2 . . 1 . Kinetic 71 | 5 23 . 30 8 . . 1 4 Thermal 62 | 5 27 1 15 2 . . 1 11 Explosive 20 | . 4 6 4 . . . . 6 Electromagnetic 7 | . . . 7 . . . . . Robot Hit Streak 8 | 5 7 8 8 4 . . . . Robot Miss Streak 4 | 2 3 . 3 4 . . 2 . Penetration Max . | . . . . . . . . . Secondary Targets 2 | . 1 . . 1 . . . . Max Gunslinging Chain 1 | . 1 . . 1 . . . . Shots Hit Robots 91 | 7 34 1 39 5 . . . 5 Core Hits 48 | 3 19 3 16 4 . . . 3 Critical Kills . | . . . . . . . . . Critical Parts Destroyed . | . . . . . . . . . Critical Strikes 4 | 1 2 . 1 . . . . . Burn 4 | 1 2 . 1 . . . . . Melee Attacks 47 | . . . . . . . . 47 Impact 47 | . . . . . . . . 47 Slashing . | . . . . . . . . . Piercing . | . . . . . . . . . Sneak Attacks 4 | . . . . . . . . 4 Combat Hostiles . | . . . . . . . . . Follow-up Attacks . | . . . . . . . . . Damage Inflicted 2189 | 73 731 135 756 92 . . . 402 Guns 1006 | 73 396 . 445 92 . . . . Cannons 139 | . . . 139 . . . . . Explosions 695 | . 335 135 172 . . . . 53 Melee 331 | . . . . . . . . 331 Ramming 18 | . . . . . . . . 18 Kinetic 529 | 22 96 . 319 92 . . . . Thermal 477 | 51 300 . 126 . . . . . Explosive 695 | . 335 135 172 . . . . 53 Electromagnetic 139 | . . . 139 . . . . . Impact 331 | . . . . . . . . 331 Slashing . | . . . . . . . . . Piercing . | . . . . . . . . . Highest Corruption 6 | . . . . . . . . 6 Average Corruption 5 | . . . . . . . . 5 Corruption Purged . | . . . . . . . . . Corruption Blocked . | . . . . . . . . . Effects 5 | . . . . . . . . 5 Message Errors 2 | . . . . . . . . 2 Matter Fused 1 | . . . . . . . . 1 Parts Rejected 1 | . . . . . . . . 1 Data Loss (minor) 1 | . . . . . . . . 1 Overload Shots . | . . . . . . . . . Overflow Damage 141 | . . . . . . . . 141 Projectiles . | . . . . . . . . . Explosions 34 | . . . . . . . . 34 Melee 107 | . . . . . . . . 107 Knockbacks 1 | . . . . . . . . 1 Impact 1 | . . . . . . . . 1 Kinetic . | . . . . . . . . . Secondary . | . . . . . . . . . Self-Inflicted Damage 241 | . . . 49 . . . . 192 Shots 7 | . . . 2 . . . . 5 Rammed 4 | . . . . . . . . 4 Targets Rammed 4 | . . . . . . . . 4 Kicked . | . . . . . . . . . Crushed . | . . . . . . . . . Highest Temperature 300 | 60 208 33 145 35 . . 5 300 Average Temperature 72 | 28 77 20 69 18 . . 3 118 Received Heat Transfer 663 | . 114 . 90 9 . . . 450 Siege Activations . | . . . . . . . . . Martial Activations . | . . . . . . . . . Shielding Activations . | . . . . . . . . . Robots Disrupted . | . . . . . . . . . Combat Hostiles . | . . . . . . . . . Robots Corrupted 1 | . . . . . . . . 1 Combat Hostiles . | . . . . . . . . . Parts Fried 1 | . . . . . . . . 1 Impact Corruptions 3 | . . . . . . . . 3 Robots Melted . | . . . . . . . . . Combat Hostiles . | . . . . . . . . . Parts Melted 2 | . 1 . 1 . . . . . Heat Transferred 1443 | 222 851 . 370 . . . . . Parts Sabotaged . | . . . . . . . . . Parts Stolen . | . . . . . . . . . Parts Stripped . | . . . . . . . . . Power Chain Reactions . | . . . . . . . . . Alert | -11 -10 -10 -9 -9 -9 -8 -8 -8 ------- Run | Yrd Mat Min Mat Min Exi Min Mat Sto Maximum Alert Level 2 | . . . . . . . . 2 Low Security (%) 90 | 100 100 100 100 100 . 100 100 78 Level 1 8 | . . . . . . . . 19 Level 2 . | . . . . . . . . 2 Level 3 . | . . . . . . . . . Level 4 . | . . . . . . . . . Level 5 . | . . . . . . . . . High Security . | . . . . . . . . . Max Security . | . . . . . . . . . Peak Influence 471 | 5 178 95 139 155 . . 18 471 Initial 33 | . . . 33 9 . . . . Average 61 | . 45 10 67 74 . . 2 77 Influence Increases 1902 | 10 356 120 293 357 . . 26 740 Destroy 0b10 Robot/C 760 | . 240 60 180 240 . . . 40 Destroy 0b10 Robot/NC 45 | 10 10 . 15 . . . . 10 Destroy Leader 158 | . 64 10 24 40 . . . 20 Allied During Kill 26 | . . . . 16 . . . 10 Successful Hack 58 | . . . 8 . . . 26 24 Disable Machine 90 | . . 15 . . . . . 75 Destroy Structure 90 | . 12 20 21 1 . . . 36 Partial Spotted 150 | . . 15 15 . . . . 120 Lose Combat Pursuer 525 | . 30 . 30 60 . . . 405 Influence Decreases 1431 | 10 356 35 354 264 117 . 26 269 Entered New Map 184 | . . . 52 15 117 . . . Time Decay 821 | 10 210 35 262 139 . . 16 149 Lost Part 170 | . . . 40 10 . . 10 110 Lost Ally 110 | . . . . 100 . . . 10 Purge Threat 146 | . 146 . . . . . . . Squads Dispatched 8 | . 3 . . . . . 1 4 Investigation 3 | . 2 . . . . . . 1 Extermination . | . . . . . . . . . Reinforcement 3 | . 1 . . . . . 1 1 Assault 2 | . . . . . . . . 2 Garrison . | . . . . . . . . . Intercept . | . . . . . . . . . Searches Triggered . | . . . . . . . . . Construction Impeded . | . . . . . . . . . Haulers Reinforced . | . . . . . . . . . Active Scanning Responses . | . . . . . . . . . Cargo Convoy Interrupts . | . . . . . . . . . Stealth | -11 -10 -10 -9 -9 -9 -8 -8 -8 --------- Run | Yrd Mat Min Mat Min Exi Min Mat Sto Distress Signals 1 | . . . . . . . . 1 Communications Jammed . | . . . . . . . . . Distress Signals . | . . . . . . . . . Times Spotted 106 | . 22 9 13 12 . . 6 44 Peak Tracking Total 19 | . 6 6 3 6 . . 5 19 Tactical Retreats 16 | . 1 1 1 3 . . . 10 Traps | -11 -10 -10 -9 -9 -9 -8 -8 -8 ------- Run | Yrd Mat Min Mat Min Exi Min Mat Sto Traps Triggered 4 | . 2 . . . . . . 2 Indirectly . | . . . . . . . . . Trap Hack Attempts . | . . . . . . . . . Triggered . | . . . . . . . . . Disarmed 2 | . 2 . . . . . . . Reprogrammed . | . . . . . . . . . Reused . | . . . . . . . . . Traps Extracted . | . . . . . . . . . Installed . | . . . . . . . . . Triggered . | . . . . . . . . . Machines | -11 -10 -10 -9 -9 -9 -8 -8 -8 ---------- Run | Yrd Mat Min Mat Min Exi Min Mat Sto Machines Disabled 6 | . . 1 . . . . . 5 Max in Single Turn 1 | . . 1 . . . . . 1 Garrison Access 1 | . . . . . . . . 1 Machines Repaired . | . . . . . . . . . Machines Dismantled . | . . . . . . . . . Machines Sabotaged . | . . . . . . . . . Overloaded Fab Kills . | . . . . . . . . . Hacking | -11 -10 -10 -9 -9 -9 -8 -8 -8 --------- Run | Yrd Mat Min Mat Min Exi Min Mat Sto Machines Accessed 23 | . 7 . 4 . 1 . 3 8 Terminals 19 | . 6 . 4 . . . 2 7 Fabricators . | . . . . . . . . . Repair Stations . | . . . . . . . . . Recycling Units 2 | . 1 . . . . . 1 . Scanalyzers . | . . . . . . . . . Garrison Access 1 | . . . . . . . . 1 Total Hacks 71 | . 24 . 11 . 1 . 12 23 Successful 35 | . 13 . 4 . 1 . 5 12 Failed 36 | . 11 . 7 . . . 7 11 Catastrophic 5 | . 2 . . . . . 1 2 Database Lockouts . | . . . . . . . . . Manual 41 | . 14 . 9 . 1 . 5 12 Terminals 64 | . 23 . 11 . . . 10 20 Fabricators . | . . . . . . . . . Repair Stations . | . . . . . . . . . Recycling Units 3 | . 1 . . . . . 2 . Scanalyzers . | . . . . . . . . . Garrison Access 3 | . . . . . . . . 3 Terminal Hacks 19 | . 7 . 1 . 1 . 3 7 Record 3 | . 1 . . . . . 1 1 Open Door 1 | . . . . . . . . 1 Branch Access Points 2 | . 1 . . . . . . 1 Emergency Access Points 2 | . 1 . . . . . . 1 Garrison Index 1 | . . . . . . . . 1 Unreport Threat 1 | . 1 . . . . . . . Disarm Traps 1 | . 1 . . . . . . . Patrol Status 1 | . . . . . . . . 1 Reinforcement Status 1 | . 1 . . . . . . . Recall Reinforcements 1 | . 1 . . . . . . . Recall Assault 2 | . . . . . . . 1 1 Hauler Manifests 1 | . . . . . . . 1 . Zone Layout 1 | . . . 1 . . . . . Proto ID Catalog 1 | . . . . . 1 . . . Fabricator Hacks . | . . . . . . . . . Repair Station Hacks . | . . . . . . . . . Recycling Unit Hacks 1 | . 1 . . . . . . . Report Inventory 1 | . 1 . . . . . . . Scanalyzer . | . . . . . . . . . Garrison Access Hacks 1 | . . . . . . . . 1 Seal Access 1 | . . . . . . . . 1 Unauthorized Hacks 14 | . 5 . 3 . . . 2 4 Terminals 14 | . 5 . 3 . . . 2 4 Botnet 14 | . 5 . 3 . . . 2 4 Fabricators . | . . . . . . . . . Repair Stations . | . . . . . . . . . Recycling Units . | . . . . . . . . . Scanalyzers . | . . . . . . . . . Garrison Access . | . . . . . . . . . Data Cores Recovered . | . . . . . . . . . Used . | . . . . . . . . . Hacking Detections 21 | . 7 . 4 . . . 3 7 Full Trace Events 2 | . . . . . . . . 2 Feedback Events . | . . . . . . . . . Feedback Blocked . | . . . . . . . . . Robot Schematics Acquired . | . . . . . . . . . Robots Built . | . . . . . . . . . Authchips . | . . . . . . . . . Time . | . . . . . . . . . Total Robot Build Rating . | . . . . . . . . . Part Schematics Acquired . | . . . . . . . . . Parts Built . | . . . . . . . . . Authchips . | . . . . . . . . . Time . | . . . . . . . . . Total Part Build Rating . | . . . . . . . . . Part Studies Acquired . | . . . . . . . . . Parts Repaired . | . . . . . . . . . Time . | . . . . . . . . . Parts Recycled . | . . . . . . . . . Recycled Matter . | . . . . . . . . . Retrieved Matter . | . . . . . . . . . Retrieved Components . | . . . . . . . . . Parts Scanalyzed . | . . . . . . . . . Part Schematics Acquired . | . . . . . . . . . Parts Damaged . | . . . . . . . . . Bothacking | -11 -10 -10 -9 -9 -9 -8 -8 -8 ------------ Run | Yrd Mat Min Mat Min Exi Min Mat Sto Used RIF Installer . | . . . . . . . . . Robots Hacked . | . . . . . . . . . Non-combat . | . . . . . . . . . Combat . | . . . . . . . . . Robot Hacks Applied . | . . . . . . . . . Relay Couplers Released . | . . . . . . . . . Fabnet Peak Effective % . | . . . . . . . . . Robots Rewired . | . . . . . . . . . Allies Hacked . | . . . . . . . . . Hacks Repelled . | . . . . . . . . . Allies | -11 -10 -10 -9 -9 -9 -8 -8 -8 -------- Run | Yrd Mat Min Mat Min Exi Min Mat Sto Total Allies 8 | . . . . 6 . . . 2 Largest Group 4 | . . . . 4 1 . . 2 Highest-Rated Group 71 | . . . . 71 31 . . 62 Highest-Rated Ally 31 | . . . . 31 31 . . 31 Total Orders . | . . . . . . . . . Ally Attacks 41 | . . . . 36 . . . 5 Total Damage 829 | . . . . 416 . . . 413 Kills 12 | . . . . 8 . . . 4 Allies Corrupted . | . . . . . . . . . Allies Melted . | . . . . . . . . . Intel | -11 -10 -10 -9 -9 -9 -8 -8 -8 ------- Run | Yrd Mat Min Mat Min Exi Min Mat Sto Active Infowar (turns) 3818 | 34 745 184 458 306 262 32 93 1704 Structural 2680 | . . . 283 306 262 32 93 1704 Seismic 1138 | 34 745 184 175 . . . . . Robot Analysis Total . | . . . . . . . . . Derelict Logs Recovered 1 | . . . . 1 . . . . Drone Launches 2 | . . . . . . . . 2 Drone Recoveries 1 | . . . . . . . . 1 Exploration | -11 -10 -10 -9 -9 -9 -8 -8 -8 ------------- Run | Yrd Mat Min Mat Min Exi Min Mat Sto Turns Passed 3984 | 90 746 184 563 306 262 32 93 1708 Spaces Moved 3742 | 50 527 141 313 659 786 98 151 1017 Core 98 | 15 . . 2 . . . . 81 Treads . | . . . . . . . . . Legs 994 | 35 527 141 214 . . . . 77 Wheels 36 | . . . 36 . . . . . Hover . | . . . . . . . . . Flight 2614 | . . . 61 659 786 98 151 859 Fastest Speed 26 | 50 120 120 29 29 29 29 29 26 Average Speed 59 | 119 120 120 123 29 29 29 29 46 Slowest Speed 300 | 250 120 120 300 29 29 29 29 150 Overloaded Moves . | . . . . . . . . . Propulsion Burnouts . | . . . . . . . . . Robots Hopped 41 | . . . . 12 . . 4 25 Potential Cave-ins 20 | . . 3 . . . . . 17 Cave-ins Triggered . | . . . . . . . . . Time Travels 1 | . . . . . . . . 1 Exploration Rate (%) 52 | 4 71 42 30 93 92 44 17 78 Regions Visited 8 Branch Regions 5 Pre-discovered Areas . | . . . . . . . . . Known Exits Taken 2 | . 1 1 . . . . . . Unknown Exits Taken 6 | 1 . . 1 1 1 1 1 . Scrap Searched 3 | . . 1 . 1 . 1 . . Spaces Dug 73 | . . 43 . . . . . 30 Terrain Destroyed 125 | . 9 47 20 1 . . . 48 Melee 17 | . . . . . . . . 17 Projectile 1 | . . . . 1 . . . . AOE 107 | . 9 47 20 . . . . 31 Terrain Rammed . | . . . . . . . . . Walls Destroyed . | . . . . . . . . . Machines Disabled . | . . . . . . . . . Actions | -11 -10 -10 -9 -9 -9 -8 -8 -8 --------- Run | Yrd Mat Min Mat Min Exi Min Mat Sto Total 5230 | 68 589 148 440 747 819 101 192 2126 Wait 1218 | 1 22 1 27 86 26 . 39 1016 Move 3659 | 49 526 140 312 636 785 97 142 972 Hop 34 | . . . . 10 . . 4 20 Pick Up 35 | 5 5 . 13 2 3 2 3 2 Fast Attach 42 | 7 1 . 15 2 . . . 17 Attach 18 | . . . 7 1 1 . 1 8 Detach 21 | . 1 . 9 1 . . . 10 Swap 15 | . 5 1 5 1 2 . . 1 Drop 47 | 1 2 . 24 3 2 2 2 11 Fire 88 | 5 27 6 28 5 . . 1 16 Melee 47 | . . . . . . . . 47 Ram 4 | . . . . . . . . 4 Kick . | . . . . . . . . . Crush . | . . . . . . . . . Escape Stasis . | . . . . . . . . . Rewire 2 | . . . . . . . . 2 Trap . | . . . . . . . . . Miscellaneous . | . . . . . . . . . Route ------- -11/Scrapyard -10/Materials (discovered 4 exits: *Mat x2 / *Min / [*Sub]) -10/Mines -9/Materials -9/Mines (discovered 2 exits: *Mat / *Exi) -9/Exiles (discovered 2 exits: [*Min x2]) -8/Mines -8/Materials -8/Storage (discovered 1 exit: Rec) History --------- Turn | Location | Event 24 | -11/Scrapyard | Discovered new exit (range 15) 91 | -11/Scrapyard | Entered Materials 235 | -10/Materials | Discovered new exit (range 10) 314 | -10/Materials | Build established: Mutant 473 | -10/Materials | Identified exit to Materials 502 | -10/Materials | Discovered new exit (range 7) 643 | -10/Materials | Identified exit to Mines 671 | -10/Materials | Discovered exit to Materials (range 16) 837 | -10/Materials | Entered Mines 886 | -10/Mines | Assembled infested the area 891 | -10/Mines | Assisted by a Guerilla fighting off Assembled 1000 | -10/Mines | Discovered exit to Materials (range 15) 1021 | -10/Mines | Entered Materials 1021 | -9/Materials | Evolved 2 slots: Propulsion x1, Utility x1 1170 | -9/Materials | Lost 3 parts (1p2n) 1561 | -9/Materials | Discovered new exit (range 16) 1584 | -9/Materials | Entered Mines 1587 | -9/Mines | Received a Mining Laser from a helpful Derelict 1677 | -9/Mines | Discovered new exit (range 7) 1729 | -9/Mines | Assisted by bots powering up and referring to "LRC-V3" 1757 | -9/Mines | Learned Materials emergency access door positions 1782 | -9/Mines | Build established: Sprinter 1826 | -9/Mines | Deemed a non-threat by the Exiles lab entrance 1826 | -9/Mines | Discovered new exit (range 5) 1890 | -9/Mines | Entered Exiles 1890 | -9/Exiles | Accompanied by 1 ally 1898 | -9/Exiles | Met 8R-AWN 1920 | -9/Exiles | Led the pair of lost Derelicts to a safe place 1927 | -9/Exiles | Met EX-HEX 1938 | -9/Exiles | Met EX-DEC 1948 | -9/Exiles | Visited The Gauntlet 2002 | -9/Exiles | Discovered new exit (range 10) 2020 | -9/Exiles | Met EX-BIN 2024 | -9/Exiles | Aligned with FarCom system 2025 | -9/Exiles | Given EX-Vault access code 2031 | -9/Exiles | Opened EX-Vault 2034 | -9/Exiles | Found Chronowheel 2041 | -9/Exiles | Warned to stay clear of 0b10 Research branches 2111 | -9/Exiles | Discovered new exit (range 14) 2152 | -9/Exiles | Left Exiles lab with Chronowheel 2152 | -9/Exiles | Entered Mines 2161 | -8/Mines | Found DCF Scrap (17 items) 2181 | -8/Mines | Discovered new exit (range 7) 2184 | -8/Mines | Entered Materials 2184 | -8/Materials | Evolved 2 slots: Propulsion x1, Utility x1 2262 | -8/Materials | Discovered new exit (range 15) 2277 | -8/Materials | Entered Storage 2494 | -8/Storage | Build established: Hacker-Sprinter 3341 | -8/Storage | Identified exit to Recycling 3697 | -8/Storage | Lost 3 parts (1p2n) 3717 | -8/Storage | Met a pair of Derelict thieves 3873 | -8/Storage | Lost 3 parts (2u1w) 3915 | -8/Storage | Core integrity fell below 50% 3920 | -8/Storage | Activated Chronowheel 3920 | -8/Storage | Spacetime reconverged on an earlier point 3937 | -8/Storage | Core integrity fell below 20% 3976 | -8/Storage | Build established: Mutant 3985 | -8/Storage | Destroyed by G-50 Soldier with Heavy Laser Last Messages --------------- S011. 03947_ Connecting with Door Terminal... >>Open(Door) Sealed Heavy Doors opened. 03948_ Acquired Drone Bay. 03950_ Drone released from Drone Bay. 03955_ Drone retrieved by Drone Bay (no repairs). 03955_ Dropped Drone Bay. 03956_ >> Lost connection to Drone. 03957_ Drone cannot be rewired. 03959_ Drone destroyed. 03960_ Acquired 5 matter. 03974_ JRVE 4TF5QQN79A8ZEHX8ZYSAL%|UVV6DS#1CTP 03979_ Slammed into Y-45 Defender. 03979_ Destabilizing: Core damaged (-5). 03980_ Slammed into G-47 Trooper. 03981_ Critical hit (Burn: +37). 03981_ Slammed into G-50 Soldier. 03981_ Structural Scanner destroyed. 03982_ Slammed into G-47 Trooper. Map ----- +----------------------------------------------------+ | | | | | | | | | | | ????????????????????????????????????? | | ???????????????????????????????#####? | | ?????????????????????????????#######? | | ?????????????????????????????## ? | | ????????????????????????????? ?? | | ??????????????????????????????? ?? | | ??????????????????????????????? ?? | | ??????????????????????????????# ?? | | ??????????????????????????????## ## | | ??????????????????????????????## ## | | ??????????????????????????????## ## | | ???#######????????????????????## ## | | ???#################??????????## ## | | ???## ############?Y???????? # ## | | ???## ####T# !!!##?????????? # ## | | ???## ### ! ##?????????? # ## | | ???### #### #!!!!##?????????? + | | ???###Y#### #######??????g??? # ## | | ????## #####+#######?????????? # ## | | ??####ggg ##??????g?????? # # | | ??####/#####@ ##????????????? # | | ??##! ##o ##?????????????## | | ??## "# ##?????????????## | | ??## """ T# g ##?????????????## # | | ??##! """ "# ##?????????????## ## | | ??## """ ## ##?????????????## ## | | ??## ## #####?????????### ## | | ??########## #### ?????????### ## | | ??########## ##T# ?????????## # | | ??########## g # " ?????????## # | | ??########## r "??????????## # | | ??##!!!!" # l # " ?????????## # | | ??## # # # ?????????## # | | ??##!!!!" + g#####?????????#### ### | | ??###??##T## Y#####?????????#### ### | | ??###??##### u ##??????????????## | | ???????##### gh##????#########?## ### | | ??????????## ################## ### | | ??????????## ######## ##### ### | | ??????????## ### #### ### | | ??????????## ### #### # | | ??????????## ### "%"/ | | ??????????## ### """ #### # | | ??????????## ### """ #### # | | ??????????## ### """ #### ### | +----------------------------------------------------+ Best States ------------- Heat Dissipation 31 Energy Generation 12 Energy Capacity 265 Matter Stores 300 Matter Capacity 300 Sight Range 16 Terrain Scan Density 10 Propulsion Shielding 33 Evasion (%) 64 Targeting Accuracy 5 Offensive Hacking 20 Item Schematics ----------------- None Robot Schematics ------------------ None Fabricated ------------ Nothing Repaired ---------- Nothing Studied --------- None Alien Tech Used ----------------- None Achievements -------------- Sixth Sense Spacetime Is Relative Challenges ------------ None Game ------ Seed PhysicsScrapAxe Manual? 0 Play Time 01:06:07 Cumulative 30.0 hours Start 2025.10.28 @ 21:06:17 End 2025.10.29 @ 00:23:56 Sessions 3 Manual Loads 0 Difficulty Rogue Special Mode None Game No. 43 Rogue 20 Adventurer 18 Explorer 5 Win Type - Total 0 Types 0/0/0/0/0/0/0/0/0/0 Lore% 29 Gallery% 39 Achievement% 27 Wizard Run 0 Options --------- Layout 0 ASCII 0 Keyboard 1 Movement Numpad Keybinds 0 Fullscreen 1 Font 18/X11 Map View 76x50 Zoom Use 0% Tactical HUD 1 Map Filters NONE Filters NONE Steam 1 RUN: 5a3f4ba6-7d10-4d44-8760-21ec7f51563f